fUSD/lending_fUSD_20240714
["ID","MTS","AMOUNT","RATE_DAILY","PERIOD"]
[332054620,1720944653370,-467.53054708,0.00013753,2]
[332054621,1720944653379,-377.28101204,0.00013753,2]
[332054622,1720944653388,-500.0,0.00013753,2]
[332054623,1720944653397,-1188.58,0.00013753,2]
[332054624,1720944653407,-500.0,0.00013753,2]
[332054625,1720944653416,-878.86,0.00013753,2]
[332054626,1720944653425,-1040.9,0.00013753,2]
[332054627,1720944653434,-500.0,0.00013753,2]
[332054628,1720944653444,-500.0,0.00013753,2]
[332054629,1720944653453,-500.0,0.00013753,2]
[332054630,1720944653462,-500.0,0.00013753,2]
[332054631,1720944653471,-1332.58,0.00013753,2]
[332054632,1720944653480,-500.0,0.00013753,2]
[332054633,1720944653489,-500.0,0.00013753,2]
[332054634,1720944653499,-644.11,0.00013753,2]
[332054635,1720944653508,-500.0,0.00013753,2]
[332054636,1720944653517,-695.94,0.00013753,2]
[332054637,1720944653527,-500.0,0.00013753,2]
[332054638,1720944653536,-500.0,0.00013753,2]
[332054639,1720944653547,-500.0,0.00013753,2]
[332054640,1720944653555,-195.58606565,0.00013753,2]
[332054641,1720944653565,-757.44,0.00013753,2]
[332054642,1720944653574,-500.0,0.00013753,2]
[332054643,1720944653584,-1082.22,0.00013753,2]
[332054644,1720944653593,-500.0,0.00013753,2]
[332054645,1720944653603,-748.29,0.00013753,2]
[332054646,1720944653612,-766.6,0.00013753,2]
[332054647,1720944653621,-1194.25,0.00013753,2]
[332054648,1720944653632,-739.05,0.00013753,2]
[332054649,1720944653641,-505.31027742,0.00013753,2]
[332054650,1720944653651,-500.0,0.00013753,2]
[332054651,1720944653660,-828.75,0.00013753,2]
[332054652,1720944653670,-500.0,0.00013753,2]
[332054653,1720944653679,-354.36,0.00013753,2]
[332054654,1720944653688,-500.0,0.00013753,2]
[332054655,1720944653698,-451.72689906,0.00013753,2]
[332054656,1720944653707,-500.0,0.00013753,2]
[332054657,1720944653717,-500.0,0.00013753,2]
[332054658,1720944653726,-831.45,0.00013753,2]
[332054659,1720944653736,-259.36052032,0.00013753,2]
[332054660,1720944653748,-500.0,0.00013753,2]
[332054661,1720944653758,-500.0,0.00013753,2]
[332054662,1720944653768,-500.0,0.00013753,2]
[332054663,1720944653777,-500.0,0.00013753,2]
[332054664,1720944653788,-849.09,0.00013753,2]
[332054665,1720944653798,-543.18,0.00013753,2]
[332054666,1720944653807,-816.29,0.00013753,2]
[332054667,1720944653817,-500.0,0.00013753,2]
[332054668,1720944653827,-500.0,0.00013753,2]
[332054669,1720944653838,-500.0,0.00013753,2]
[332054670,1720944653847,-500.0,0.00013753,2]
[332054671,1720944653856,-500.0,0.00013753,2]
[332054672,1720944653866,-1015.12,0.00013753,2]
[332054673,1720944653875,-1008.51,0.00013753,2]
[332054674,1720944653884,-596.08,0.00013753,2]
[332054675,1720944653893,-500.0,0.00013753,2]
[332054676,1720944653903,-500.0,0.00013753,2]
[332054677,1720944653912,-500.0,0.00013753,2]
[332054678,1720944653923,-984.1,0.00013753,2]
[332054679,1720944653934,-500.0,0.00013753,2]
[332054680,1720944653944,-862.18,0.00013753,2]
[332054681,1720944653954,-500.0,0.00013753,2]
[332054682,1720944653964,-785.47,0.00013753,2]
[332054683,1720944653976,-500.0,0.00013753,2]
[332054684,1720944653986,-500.0,0.00013753,2]
[332054685,1720944653995,-981.46,0.00013753,2]
[332054686,1720944654004,-500.0,0.00013753,2]
[332054687,1720944654013,-500.0,0.00013753,2]
[332054688,1720944654023,-1104.22,0.00013753,2]
[332054689,1720944654033,-500.0,0.00013753,2]
[332054690,1720944654044,-703.61,0.00013753,2]
[332054691,1720944654054,-500.0,0.00013753,2]
[332054692,1720944654064,-500.0,0.00013753,2]
[332054693,1720944654073,-1735.14,0.00013753,2]
[332054694,1720944654085,-500.0,0.00013753,2]
[332054695,1720944654096,-634.42,0.00013753,2]
[332054696,1720944654106,-500.0,0.00013753,2]
[332054697,1720944654116,-704.83,0.00013753,2]
[332054698,1720944654127,-500.0,0.00013753,2]
[332054699,1720944654138,-500.0,0.00013753,2]
[332054700,1720944654150,-500.0,0.00013753,2]
[332054701,1720944654160,-351.9983998,0.00013753,2]
[332054702,1720944654171,-500.0,0.00013753,2]
[332054703,1720944654180,-500.0,0.00013753,2]
[332054704,1720944654190,-688.54,0.00013753,2]
[332054705,1720944654199,-699.49,0.00013753,2]
[332054706,1720944654208,-730.8,0.00013753,2]
[332054707,1720944654217,-500.0,0.00013753,2]
[332054708,1720944654227,-1161.87,0.00013753,2]
[332054709,1720944654236,-500.0,0.00013753,2]
[332054710,1720944654245,-500.0,0.00013753,2]
[332054711,1720944654254,-500.0,0.00013753,2]
[332054712,1720944654264,-981.53,0.00013753,2]
[332054713,1720944654273,-500.0,0.00013753,2]
[332054714,1720944654282,-500.0,0.00013753,2]
[332054715,1720944654291,-542.72,0.00013753,2]
[332054716,1720944654300,-814.22,0.00013753,2]
[332054717,1720944654309,-500.0,0.00013753,2]
[332054718,1720944654319,-733.24,0.00013753,2]
[332054719,1720944654327,-500.0,0.00013753,2]
[332054720,1720944654336,-500.0,0.00013753,2]
[332054721,1720944654346,-500.0,0.00013753,2]
[332054722,1720944654355,-900.42,0.00013753,2]
[332054723,1720944654364,-500.0,0.00013753,2]
[332054724,1720944654374,-500.0,0.00013753,2]
[332054725,1720944654383,-500.0,0.00013753,2]
[332054726,1720944654393,-500.0,0.00013753,2]
[332054727,1720944654403,-500.0,0.00013753,2]
[332054728,1720944654413,-1126.21,0.00013753,2]
[332054729,1720944654422,-438.09380028,0.00013753,2]
[332054730,1720944654432,-500.0,0.00013753,2]
[332054731,1720944654441,-500.0,0.00013753,2]
[332054732,1720944654450,-500.0,0.00013753,2]
[332054733,1720944654460,-500.0,0.00013753,2]
[332054734,1720944654470,-500.0,0.00013753,2]
[332054735,1720944654480,-665.99,0.00013753,2]
[332054736,1720944654489,-500.0,0.00013753,2]
[332054737,1720944654498,-500.0,0.00013753,2]
[332054738,1720944654508,-546.39,0.00013753,2]
[332054739,1720944654518,-500.0,0.00013753,2]
[332054740,1720944654527,-697.26,0.00013753,2]
[332054741,1720944654538,-686.52,0.00013753,2]
[332054742,1720944654547,-697.79,0.00013753,2]
[332054743,1720944654557,-735.3,0.00013753,2]
[332054744,1720944654567,-331.44533464,0.00013753,2]
[332054745,1720944654578,-500.0,0.00013753,2]
[332054746,1720944654589,-500.0,0.00013753,2]
[332054747,1720944654599,-500.0,0.00013753,2]
[332054748,1720944654610,-500.0,0.00013753,2]
[332054749,1720944654620,-1039.36,0.00013753,2]
[332054750,1720944654630,-1038.98,0.00013753,2]
[332054751,1720944654640,-500.0,0.00013753,2]
[332054752,1720944654650,-588.86,0.00013753,2]
[332054753,1720944654659,-500.0,0.00013753,2]
[332054754,1720944654671,-500.0,0.00013753,2]
[332054755,1720944654682,-500.0,0.00013753,2]
[332054756,1720944654693,-749.01,0.00013753,2]
[332054757,1720944654702,-1568.94,0.00013753,2]
[332054758,1720944654712,-826.74,0.00013753,2]
[332054759,1720944654722,-400.0,0.00013753,2]
[332054760,1720944654731,-966.66,0.00013753,2]
[332054761,1720944654741,-500.0,0.00013753,2]
[332054762,1720944654751,-716.2,0.00013753,2]
[332054763,1720944654763,-1331.68,0.00013753,2]
[332054764,1720944654774,-500.0,0.00013753,2]
[332054765,1720944654783,-1142.0,0.00013753,2]
[332054766,1720944654795,-857.39,0.00013753,2]
[332054767,1720944654804,-500.0,0.00013753,2]
[332054768,1720944654815,-500.0,0.00013753,2]
[332054769,1720944654824,-691.76,0.00013753,2]
[332054770,1720944654834,-500.0,0.00013753,2]
[332054771,1720944654843,-1459.14,0.00013753,2]
[332054772,1720944654853,-1026.42,0.00013753,2]
[332054773,1720944654862,-634.68,0.00013753,2]
[332054774,1720944654872,-1139.81,0.00013753,2]
[332054775,1720944654881,-500.0,0.00013753,2]
[332054776,1720944654890,-500.0,0.00013753,2]
[332054777,1720944654900,-500.0,0.00013753,2]
[332054778,1720944654909,-767.6,0.00013753,2]
[332054779,1720944654918,-500.0,0.00013753,2]
[332054780,1720944654928,-500.0,0.00013753,2]
[332054781,1720944654937,-500.0,0.00013753,2]
[332054782,1720944654946,-830.17,0.00013753,2]
[332054783,1720944654956,-624.62,0.00013753,2]
[332054784,1720944654966,-573.8,0.00013753,2]
[332054785,1720944654976,-500.0,0.00013753,2]
[332054786,1720944654985,-500.0,0.00013753,2]
[332054787,1720944654995,-500.0,0.00013753,2]
[332054788,1720944655004,-1206.4,0.00013753,2]
[332054789,1720944655013,-500.0,0.00013753,2]
[332054790,1720944655023,-320.08604483,0.00013753,2]
[332054791,1720944655032,-500.0,0.00013753,2]
[332054792,1720944655041,-157.66841511,0.00013753,2]
[332054793,1720944655051,-500.0,0.00013753,2]
[332054794,1720944655060,-669.03,0.00013753,2]
[332054795,1720944655070,-500.0,0.00013753,2]
[332054796,1720944655080,-500.0,0.00013753,2]
[332054797,1720944655091,-573.27,0.00013753,2]
[332054798,1720944655100,-500.0,0.00013753,2]
[332054799,1720944655110,-1222.83,0.00013753,2]
[332054800,1720944655119,-872.95,0.00013753,2]
[332054801,1720944655130,-500.0,0.00013753,2]
[332054802,1720944655139,-500.0,0.00013753,2]
[332054803,1720944655149,-500.0,0.00013753,2]
[332054804,1720944655158,-500.0,0.00013753,2]
[332054805,1720944655168,-855.07,0.00013753,2]
[332054806,1720944655178,-626.86,0.00013753,2]
[332054807,1720944655187,-500.0,0.00013753,2]
[332054808,1720944655197,-500.0,0.00013753,2]
[332054809,1720944655206,-330.01125686,0.00013753,2]
[332054810,1720944655216,-500.0,0.00013753,2]
[332054811,1720944655227,-500.0,0.00013753,2]
[332054812,1720944655237,-500.0,0.00013753,2]
[332054813,1720944655247,-534.51,0.00013753,2]
[332054814,1720944655256,-500.0,0.00013753,2]
[332054815,1720944655266,-688.23,0.00013753,2]
[332054816,1720944655276,-500.0,0.00013753,2]
[332054817,1720944655286,-313.96632691,0.00013753,2]
[332054818,1720944655297,-650.58,0.00013753,2]
[332054819,1720944655306,-500.0,0.00013753,2]
[332054820,1720944655316,-1076.79,0.00013753,2]
[332054821,1720944655326,-500.0,0.00013753,2]
[332054822,1720944655335,-1035.73,0.00013753,2]
[332054823,1720944655345,-500.0,0.00013753,2]
[332054824,1720944655355,-500.0,0.00013753,2]
[332054825,1720944655365,-500.0,0.00013753,2]
[332054826,1720944655374,-500.0,0.00013753,2]
[332054827,1720944655384,-500.0,0.00013753,2]
[332054828,1720944655393,-558.02,0.00013753,2]
[332054829,1720944655402,-636.95,0.00013753,2]
[332054830,1720944655412,-656.29,0.00013753,2]
[332054831,1720944655421,-536.21,0.00013753,2]
[332054832,1720944655431,-546.05106173,0.00013753,2]
[332054833,1720944655440,-500.0,0.00013753,2]
[332054834,1720944655450,-612.67,0.00013753,2]
[332054835,1720944655460,-403.22709564,0.00013753,2]
[332054836,1720944655470,-500.0,0.00013753,2]
[332054837,1720944655480,-500.0,0.00013753,2]
[332054838,1720944655489,-1545.79,0.00013753,2]
[332054839,1720944655499,-500.0,0.00013753,2]
[332054840,1720944655508,-742.47,0.00013753,2]
[332054841,1720944655518,-500.0,0.00013753,2]
[332054842,1720944655528,-1159.61,0.00013753,2]
[332054843,1720944655539,-537.33,0.00013753,2]
[332054844,1720944655549,-573.62,0.00013753,2]
[332054845,1720944655558,-1906.72,0.00013753,2]
[332054846,1720944655568,-500.0,0.00013753,2]
[332054847,1720944655578,-500.0,0.00013753,2]
[332054848,1720944655589,-500.0,0.00013753,2]
[332054849,1720944655599,-500.0,0.00013753,2]
[332054850,1720944655608,-500.0,0.00013753,2]
[332054851,1720944655617,-335.91504645,0.00013753,2]
[332054852,1720944655628,-584.88,0.00013753,2]
[332054853,1720944655639,-514.79,0.00013753,2]
[332054854,1720944655650,-555.56,0.00013753,2]
[332054855,1720944655660,-572.39,0.00013753,2]
[332054856,1720944655670,-500.0,0.00013753,2]
[332054857,1720944655680,-757.5,0.00013753,2]
[332054858,1720944655690,-1339.73,0.00013753,2]
[332054859,1720944655700,-500.0,0.00013753,2]
[332054860,1720944655710,-764.15,0.00013753,2]
[332054861,1720944655721,-1239.65,0.00013753,2]
[332054862,1720944655731,-1576.22,0.00013753,2]
[332054863,1720944655742,-623.47,0.00013753,2]
[332054864,1720944655755,-500.0,0.00013753,2]
[332054865,1720944655764,-1012.69,0.00013753,2]
[332054866,1720944655774,-500.0,0.00013753,2]
[332054867,1720944655785,-955.24,0.00013753,2]
[332054868,1720944655799,-965.64,0.00013753,2]
[332054869,1720944655809,-500.0,0.00013753,2]
[332054870,1720944655822,-1041.62,0.00013753,2]
[332054871,1720944655833,-500.0,0.00013753,2]
[332054872,1720944655843,-1265.69,0.00013753,2]
[332054873,1720944655853,-515.28,0.00013753,2]
[332054874,1720944655862,-969.62,0.00013753,2]
[332054875,1720944655871,-1377.61,0.00013753,2]
[332054876,1720944655881,-973.16,0.00013753,2]
[332054877,1720944655891,-1828.8,0.00013753,2]
[332054878,1720944655901,-500.0,0.00013753,2]
[332054879,1720944655910,-746.21,0.00013753,2]
[332054880,1720944655920,-500.0,0.00013753,2]
[332054881,1720944655930,-500.0,0.00013753,2]
[332054882,1720944655940,-549.59,0.00013753,2]
[332054883,1720944655949,-500.0,0.00013753,2]
[332054884,1720944655960,-500.0,0.00013753,2]
[332054885,1720944655969,-588.1,0.00013753,2]
[332054886,1720944655980,-1001.22,0.00013753,2]
[332054887,1720944655989,-500.0,0.00013753,2]
[332054888,1720944655999,-500.0,0.00013753,2]
[332054889,1720944656008,-500.0,0.00013753,2]
[332054890,1720944656017,-870.2,0.00013753,2]
[332054891,1720944656027,-500.0,0.00013753,2]
[332054892,1720944656036,-568.14,0.00013753,2]
[332054893,1720944656048,-500.0,0.00013753,2]
[332054894,1720944656058,-608.64,0.00013753,2]
[332054895,1720944656067,-500.0,0.00013753,2]
[332054896,1720944656077,-549.39,0.00013753,2]
[332054897,1720944656086,-500.0,0.00013753,2]
[332054898,1720944656096,-500.0,0.00013753,2]
[332054899,1720944656105,-727.25,0.00013753,2]
[332054900,1720944656115,-500.0,0.00013753,2]
[332054901,1720944656124,-500.0,0.00013753,2]
[332054902,1720944656133,-500.0,0.00013753,2]
[332054903,1720944656143,-739.32,0.00013753,2]
[332054904,1720944656152,-1171.55,0.00013753,2]
[332054905,1720944656162,-1231.66,0.00013753,2]
[332054906,1720944656171,-500.0,0.00013753,2]
[332054907,1720944656180,-500.0,0.00013753,2]
[332054908,1720944656189,-500.0,0.00013753,2]
[332054909,1720944656199,-500.0,0.00013753,2]
[332054910,1720944656208,-500.0,0.00013753,2]
[332054911,1720944656218,-8626.36,0.00013753,2]
[332054912,1720944656228,-500.0,0.00013753,2]
[332054913,1720944656237,-500.0,0.00013753,2]
[332054914,1720944656247,-500.0,0.00013753,2]
[332054915,1720944656256,-500.0,0.00013753,2]
[332054916,1720944656266,-500.0,0.00013753,2]
[332054917,1720944656275,-908.97,0.00013753,2]
[332054918,1720944656285,-500.0,0.00013753,2]
[332054919,1720944656295,-500.0,0.00013753,2]
[332054920,1720944656305,-802.45,0.00013753,2]
[332054921,1720944656314,-1685.54,0.00013753,2]
[332054922,1720944656323,-992.06,0.00013753,2]
[332054923,1720944656333,-1561.02,0.00013753,2]
[332054924,1720944656343,-812.48,0.00013753,2]
[332054925,1720944656352,-500.0,0.00013753,2]
[332054926,1720944656361,-1235.59,0.00013753,2]
[332054927,1720944656371,-500.0,0.00013753,2]
[332054928,1720944656380,-500.0,0.00013753,2]
[332054929,1720944656389,-500.0,0.00013753,2]
[332054930,1720944656399,-979.82,0.00013753,2]
[332054931,1720944656408,-500.0,0.00013753,2]
[332054932,1720944656417,-500.0,0.00013753,2]
[332054933,1720944656427,-500.0,0.00013753,2]
[332054934,1720944656436,-1004.21,0.00013753,2]
[332054935,1720944656445,-1016.96,0.00013753,2]
[332054936,1720944656455,-500.0,0.00013753,2]
[332054937,1720944656464,-1044.15,0.00013753,2]
[332054938,1720944656473,-500.0,0.00013753,2]
[332054939,1720944656483,-1311.36,0.00013753,2]
[332054940,1720944656492,-500.0,0.00013753,2]
[332054941,1720944656502,-500.0,0.00013753,2]
[332054942,1720944656511,-500.0,0.00013753,2]
[332054943,1720944656521,-672.14,0.00013753,2]
[332054944,1720944656530,-1294.38,0.00013753,2]
[332054945,1720944656541,-500.0,0.00013753,2]
[332054946,1720944656551,-174.06373328,0.00013753,2]
[332054947,1720944656561,-500.0,0.00013753,2]
[332054948,1720944656571,-500.0,0.00013753,2]
[332054949,1720944656581,-707.72,0.00013753,2]
[332054950,1720944656592,-726.21,0.00013753,2]
[332054951,1720944656602,-500.0,0.00013753,2]
[332054952,1720944656612,-500.0,0.00013753,2]
[332054953,1720944656622,-1022.59,0.00013753,2]
[332054954,1720944656631,-1251.7,0.00013753,2]
[332054955,1720944656641,-500.0,0.00013753,2]
[332054956,1720944656650,-500.0,0.00013753,2]
[332054957,1720944656661,-1131.2,0.00013753,2]
[332054958,1720944656671,-728.87,0.00013753,2]
[332054959,1720944656681,-577.16,0.00013753,2]
[332054960,1720944656691,-1299.6,0.00013753,2]
[332054961,1720944656702,-500.0,0.00013753,2]
[332054962,1720944656712,-500.0,0.00013753,2]
[332054963,1720944656722,-500.0,0.00013753,2]
[332054964,1720944656732,-1018.01,0.00013753,2]
[332054965,1720944656742,-3892.56,0.00013753,2]
[332054966,1720944656755,-500.0,0.00013753,2]
[332054967,1720944656765,-1493.87,0.00013753,2]
[332054968,1720944656775,-596.53,0.00013753,2]
[332054969,1720944656786,-826.16,0.00013753,2]
[332054970,1720944656796,-338.18281228,0.00013753,2]
[332054971,1720944656806,-500.0,0.00013753,2]
[332054972,1720944656815,-637.56,0.00013753,2]
[332054973,1720944656824,-1688.78,0.00013753,2]
[332054974,1720944656837,-500.0,0.00013753,2]
[332054975,1720944656848,-773.37,0.00013753,2]
[332054976,1720944656858,-491.05769647,0.00013753,2]
[332054977,1720944656868,-1311.12,0.00013753,2]
[332054978,1720944656878,-623.47,0.00013753,2]
[332054979,1720944656888,-500.0,0.00013753,2]
[332054980,1720944656899,-500.0,0.00013753,2]
[332054981,1720944656910,-4364.13,0.00013753,2]
[332054982,1720944656920,-1332.21,0.00013753,2]
[332054983,1720944656930,-1655.02,0.00013753,2]
[332054984,1720944656940,-500.0,0.00013753,2]
[332054985,1720944656950,-670.9,0.00013753,2]
[332054986,1720944656962,-1396.58,0.00013753,2]
[332054987,1720944656972,-672.79,0.00013753,2]
[332054988,1720944656982,-500.0,0.00013753,2]
[332054989,1720944656993,-500.0,0.00013753,2]
[332054990,1720944657004,-3898.98,0.00013753,2]
[332054991,1720944657014,-2643.16,0.00013753,2]
[332054992,1720944657023,-601.97,0.00013753,2]
[332054993,1720944657033,-2195.08,0.00013753,2]
[332054994,1720944657043,-500.0,0.00013753,2]
[332054995,1720944657052,-452.42,0.00013753,2]
[332054996,1720944657062,-500.0,0.00013753,2]
[332054997,1720944657072,-828.77,0.00013753,2]
[332054998,1720944657082,-500.0,0.00013753,2]
[332054999,1720944657093,-636.92,0.00013753,2]
[332055000,1720944657104,-500.0,0.00013753,2]
[332055001,1720944657114,-1608.4,0.00013753,2]
[332055002,1720944657123,-500.0,0.00013753,2]
[332055003,1720944657135,-809.07,0.00013753,2]
[332055004,1720944657145,-500.0,0.00013753,2]
[332055005,1720944657156,-500.0,0.00013753,2]
[332055006,1720944657165,-1712.22,0.00013753,2]
[332055007,1720944657175,-500.0,0.00013753,2]
[332055008,1720944657185,-1293.57,0.00013753,2]
[332055009,1720944657195,-672.88,0.00013753,2]
[332055010,1720944657206,-351.33075965,0.00013753,2]
[332055011,1720944657218,-500.0,0.00013753,2]
[332055012,1720944657228,-500.0,0.00013753,2]
[332055013,1720944657239,-570.52,0.00013753,2]
[332055014,1720944657249,-500.0,0.00013753,2]
[332055015,1720944657259,-500.0,0.00013753,2]
[332055016,1720944657270,-1374.17,0.00013753,2]
[332055017,1720944657281,-500.0,0.00013753,2]
[332055018,1720944657290,-500.0,0.00013753,2]
[332055019,1720944657520,-660.62,0.00013753,2]
[332055020,1720944657531,-500.0,0.00013753,2]
[332055021,1720944657540,-500.0,0.00013753,2]
[332055022,1720944657551,-500.0,0.00013753,2]
[332055023,1720944657564,-916.16,0.00013753,2]
[332055024,1720944657574,-500.0,0.00013753,2]
[332055025,1720944657585,-3321.54,0.00013753,2]
[332055026,1720944657595,-557.41,0.00013753,2]
[332055027,1720944657605,-500.0,0.00013753,2]
[332055028,1720944657616,-500.0,0.00013753,2]
[332055029,1720944657627,-1225.96,0.00013753,2]
[332055030,1720944657637,-500.0,0.00013753,2]
[332055031,1720944657647,-500.0,0.00013753,2]
[332055032,1720944657657,-500.0,0.00013753,2]
[332055033,1720944657667,-500.0,0.00013753,2]
[332055034,1720944657677,-1555.82,0.00013753,2]
[332055035,1720944657688,-500.0,0.00013753,2]
[332055036,1720944657698,-500.0,0.00013753,2]
[332055037,1720944657707,-500.0,0.00013753,2]
[332055038,1720944657717,-1050.22,0.00013753,2]
[332055039,1720944657727,-666.72,0.00013753,2]
[332055040,1720944657737,-403.74056485,0.00013753,2]
[332055041,1720944657748,-759.86,0.00013753,2]
[332055042,1720944657761,-500.0,0.00013753,2]
[332055043,1720944657771,-500.0,0.00013753,2]
[332055044,1720944657781,-500.0,0.00013753,2]
[332055045,1720944657793,-672.62,0.00013753,2]
[332055046,1720944657804,-500.0,0.00013753,2]
[332055047,1720944657816,-1156.45,0.00013753,2]
[332055048,1720944657827,-872.09,0.00013753,2]
[332055049,1720944657839,-500.0,0.00013753,2]
[332055050,1720944657849,-7925.43,0.00013753,2]
[332055051,1720944657859,-5913.14,0.00013753,2]
[332055052,1720944657869,-500.0,0.00013753,2]
[332055053,1720944657878,-500.0,0.00013753,2]
[332055054,1720944657888,-971.84,0.00013753,2]
[332055055,1720944657898,-843.25,0.00013753,2]
[332055056,1720944657907,-500.0,0.00013753,2]
[332055057,1720944657918,-500.0,0.00013753,2]
[332055058,1720944657927,-500.0,0.00013753,2]
[332055059,1720944657937,-500.0,0.00013753,2]
[332055060,1720944657947,-500.0,0.00013753,2]
[332055061,1720944657957,-665.88,0.00013753,2]
[332055062,1720944657967,-500.0,0.00013753,2]
[332055063,1720944657976,-500.0,0.00013753,2]
[332055064,1720944657986,-1558.59,0.00013753,2]
[332055065,1720944657996,-500.0,0.00013753,2]
[332055066,1720944658006,-1300.15,0.00013753,2]
[332055067,1720944658016,-939.77,0.00013753,2]
[332055068,1720944658026,-500.0,0.00013753,2]
[332055069,1720944658036,-500.0,0.00013753,2]
[332055070,1720944658047,-1088.57,0.00013753,2]
[332055071,1720944658056,-984.05,0.00013753,2]
[332055072,1720944658066,-630.76148486,0.00013753,2]
[332055073,1720944658076,-500.0,0.00013753,2]
[332055074,1720944658086,-552.77,0.00013753,2]
[332055075,1720944658096,-500.0,0.00013753,2]
[332055076,1720944658105,-572.45,0.00013753,2]
[332055077,1720944658115,-500.0,0.00013753,2]
[332055078,1720944658125,-500.0,0.00013753,2]
[332055079,1720944658135,-500.0,0.00013753,2]
[332055080,1720944658144,-1115.08,0.00013753,2]
[332055081,1720944658154,-933.01,0.00013753,2]
[332055082,1720944658164,-500.0,0.00013753,2]
[332055083,1720944658173,-500.0,0.00013753,2]
[332055084,1720944658183,-500.0,0.00013753,2]
[332055085,1720944658192,-338.28166204,0.0001379,2]
[332055086,1720944658203,-49660.96024318,0.0001379,2]
[332055087,1720944658212,-49660.96024309,0.0001379,2]
[332055088,1720944658222,-150.21234166,0.000138,4]
[332055089,1720944658232,-246453.019503,0.000138,2]
[332055090,1720944658242,-212.56438722,0.00013804,2]
[332055091,1720944658251,-500.0,0.00013807,2]
[332055092,1720944658261,-500.0,0.00013807,2]
[332055093,1720944658270,-500.0,0.00013807,2]
[332055094,1720944658279,-500.0,0.00013807,2]
[332055095,1720944658288,-451.06080727,0.00013808,2]
[332055096,1720944658298,-546.78,0.00013808,2]
[332055097,1720944658307,-866.78,0.00013808,2]
[332055098,1720944658317,-500.0,0.00013808,2]
[332055099,1720944658327,-500.0,0.00013808,2]
[332055100,1720944658336,-1009.99,0.00013808,2]
[332055101,1720944658346,-748.01,0.00013808,2]
[332055102,1720944658355,-500.0,0.00013808,2]
[332055103,1720944658364,-500.0,0.00013808,2]
[332055104,1720944658374,-601.47,0.00013808,2]
[332055105,1720944658384,-500.0,0.00013808,2]
[332055106,1720944658393,-663.32,0.00013808,2]
[332055107,1720944658403,-500.0,0.00013808,2]
[332055108,1720944658412,-500.0,0.00013808,2]
[332055109,1720944658421,-500.0,0.00013808,2]
[332055110,1720944658431,-500.0,0.00013808,2]
[332055111,1720944658440,-500.0,0.00013808,2]
[332055112,1720944658449,-569.17,0.00013808,2]
[332055113,1720944658459,-504.97195779,0.00013808,2]
[332055114,1720944658469,-500.0,0.00013808,2]
[332055115,1720944658478,-500.0,0.00013808,2]
[332055116,1720944658488,-500.0,0.00013808,2]
[332055117,1720944658497,-500.0,0.00013808,2]
[332055118,1720944658507,-815.43,0.00013808,2]
[332055119,1720944658516,-500.0,0.00013808,2]